[Event "21st Dubai Open 2019"]
[Site "Dubai"]
[Date "2019.04.07"]
[Round "7.16"]
[White "San Diego, Jerlyn Mae"]
[Black "Ghaem Maghami, Ehsan"]
[Result "0-1"]
[ECO "B54"]
[WhiteElo "1836"]
[BlackElo "2531"]
[Annotator "ChessBase"]
[PlyCount "90"]
[EventDate "2019.04.01"]
[EventType "swiss"]
[EventCountry "UAE"]
[SourceTitle "playchess.com"]
[Source "ChessBase"]
[SourceQuality "1"]
[TimeControl "5400+30"]

1. e4 {[%emt 0:00:00]} c5 {[%emt 0:00:00]} 2. Nf3 {[%emt 0:00:00]} d6 {[%emt 0:01:52]} 3. d4 {[%emt 0:00:13]} cxd4 {[%emt 0:00:07]} 4. Nxd4 {[%emt 0:00:12]} Nf6 {[%emt 0:00:06]} 5. f3 {[%emt 0:00:14]} Nc6 {[%emt 0:03:01]} 6. c4 {[%emt 0:00:18]} g6 {[%emt 0:07:02]} 7. Nc3 {[%emt 0:01:23]} Bg7 {[%emt 0:04:05]} 8. Be3 {[%emt 0:00:18]} O-O {[%emt 0:00:15]} 9. Qd2 {[%emt 0:00:31]} Nxd4 {[%emt 0:06:01]} 10. Bxd4 {[%emt 0:01:04]} Be6 {[%emt 0:00:16]} 11. Be2 {[%emt 0:01:18]} Qa5 {[%emt 0:00:18]} 12. Nb5 {[%emt 0:08:17]} Qxd2+ {[%emt 0:05:07]} 13. Kxd2 {[%emt 0:00:07]} a6 {[%emt 0:15:10]} 14. Nc7 {[%emt 0:00:40]} Rac8 {[%emt 0:00:06]} 15. Nxe6 {[%emt 0:00:49]} fxe6 {[%emt 0:00:02]} 16. Be3 {[%emt 0:11:29]} d5 {[%emt 0:04:05]} 17. cxd5 {[%emt 0:03:30]} exd5 {[%emt 0:01:12]} 18. e5 {[%emt 0:00:08]} Nh5 {[%emt 0:19:10]} 19. Bd4 {[%emt 0:02:45]} Bh6+ {[%emt 0:03:13]} 20. Be3 {[%emt 0:00:28]} Bxe3+ {[%emt 0:02:48]} 21. Kxe3 {[%emt 0:00:10]} Nf4 {[%emt 0:00:15]} 22. Bf1 {[%emt 0:08:46]} Rc2 {[%emt 0:01:36]} 23. g3 {[%emt 0:01:11]} Ne6 {[%emt 0:01:55]} 24. Rb1 {[%emt 0:04:14]} d4+ {[%emt 0:05:47]} 25. Kd3 {[%emt 0:00:52]} Rf2 {[%emt 0:00:17]} 26. f4 {[%emt 0:03:37]} Rd8 {[%emt 0:00:12]} 27. Rc1 {[%emt 0:07:20]} Rxb2 {[%emt 0:02:59]} 28. Bh3 {[%emt 0:02:31]} Kf7 {[%emt 0:00:13]} 29. Bxe6+ {[%emt 0:00:44]} Kxe6 {[%emt 0:00:06]} 30. Rc2 {[%emt 0:03:41]} Rxc2 {[%emt 0:00:18]} 31. Kxc2 {[%emt 0:00:02]} Rc8+ {[%emt 0:00:27]} 32. Kd3 {[%emt 0:00:35]} Kd5 {[%emt 0:00:38]} 33. Re1 {[%emt 0:05:18]} Rc3+ {[%emt 0:00:12]} 34. Kd2 {[%emt 0:00:06]} Ra3 {[%emt 0:00:12]} 35. Ra1 {[%emt 0:00:13]} b5 {[%emt 0:01:16]} 36. Kc2 {[%emt 0:01:41]} b4 {[%emt 0:00:49]} 37. Rf1 {[%emt 0:02:40]} Rxa2+ {[%emt 0:03:15]} 38. Kb3 {[%emt 0:00:29]} Rxh2 {[%emt 0:00:11]} 39. Kxb4 {[%emt 0:02:37]} Rb2+ {[%emt 0:00:14]} 40. Ka3 {[%emt 0:01:06]} Rb5 {[%emt 0:01:40]} 41. Rh1 {[%emt 0:03:36]} h5 {[%emt 0:00:47]} 42. f5 {[%emt 0:00:45]} gxf5 {[%emt 0:00:09]} 43. Rxh5 {[%emt 0:00:17]} e6 {[%emt 0:00:10]} 44. g4 {[%emt 0:01:27]} fxg4 {[%emt 0:00:38]} 45. Rg5 {[%emt 0:00:21]} d3 {[%emt 0:00:20]} 0-1

[Event "21st Dubai Open 2019"]
[Site "Dubai"]
[Date "2019.04.07"]
[Round "7.17"]
[White "Visakh N R"]
[Black "Divya Deshmukh"]
[Result "1-0"]
[ECO "E16"]
[WhiteElo "2509"]
[BlackElo "2432"]
[Annotator "ChessBase"]
[PlyCount "83"]
[EventDate "2019.04.01"]
[EventType "swiss"]
[EventCountry "UAE"]
[SourceTitle "playchess.com"]
[Source "ChessBase"]
[SourceQuality "1"]
[TimeControl "5400+30"]

1. d4 {[%emt 0:30:23]} Nf6 {[%emt 0:00:02]} 2. c4 {[%emt 0:06:48]} e6 {[%emt 0:00:18]} 3. Nf3 Bb4+ {[%emt 0:00:07]} 4. Bd2 {[%emt 0:04:39]} Qe7 {[%emt 0:00:15]} 5. Nc3 {[%emt 0:00:09]} O-O {[%emt 0:01:56]} 6. g3 {[%emt 0:00:19]} b6 {[%emt 0:00:47]} 7. Bg2 {[%emt 0:00:13]} Bb7 {[%emt 0:00:05]} 8. O-O {[%emt 0:00:15]} d6 {[%emt 0:00:48]} 9. d5 {[%emt 0:06:30]} Bxc3 {[%emt 0:09:42]} 10. Bxc3 {[%emt 0:00:16]} e5 {[%emt 0:00:19]} 11. Nh4 {[%emt 0:03:19]} g6 {[%emt 0:01:33]} 12. e4 {[%emt 0:01:30]} Nbd7 {[%emt 0:03:02]} 13. Qd2 {[%emt 0:02:58]} a5 {[%emt 0:05:40]} 14. f4 {[%emt 0:06:23]} Rae8 {[%emt 0:08:14]} 15. Rae1 {[%emt 0:00:43]} Ba6 {[%emt 0:01:04]} 16. b3 {[%emt 0:01:41]} Nh5 {[%emt 0:05:14]} 17. fxe5 {[%emt 0:12:01]} dxe5 {[%emt 0:00:34]} 18. Qh6 {[%emt 0:02:31]} Ng7 {[%emt 0:06:37]} 19. Nf3 {[%emt 0:03:43]} f6 {[%emt 0:00:57]} 20. g4 {[%emt 0:00:49]} b5 {[%emt 0:04:39]} 21. Rf2 {[%emt 0:04:42]} bxc4 {[%emt 0:04:23]} 22. Bf1 {[%emt 0:00:02]} Qc5 {[%emt 0:02:08]} 23. Qd2 {[%emt 0:04:59]} Rb8 {[%emt 0:17:00]} 24. Bxa5 {[%emt 0:00:12]} Ne8 {[%emt 0:00:07]} 25. b4 {[%emt 0:01:35]} Qa7 {[%emt 0:01:43]} 26. Qe3 {[%emt 0:00:48]} Qa8 {[%emt 0:08:12]} 27. g5 {[%emt 0:00:31]} f5 {[%emt 0:01:00]} 28. exf5 {[%emt 0:00:50]} Nd6 {[%emt 0:01:55]} 29. fxg6 {[%emt 0:00:10]} hxg6 {[%emt 0:00:05]} 30. Bxc7 {[%emt 0:00:34]} Nf5 {[%emt 0:01:09]} 31. Qe4 {[%emt 0:00:01]} Rxb4 {[%emt 0:00:05]} 32. Bd6 {[%emt 0:00:40]} Rbb8 {[%emt 0:03:16]} 33. Bxf8 {[%emt 0:00:25]} Rxf8 {[%emt 0:00:08]} 34. Nxe5 {[%emt 0:01:34]} Nxe5 {[%emt 0:03:22]} 35. Qxe5 {[%emt 0:00:01]} Qa7 {[%emt 0:00:01]} 36. Qe6+ {[%emt 0:00:36]} Kh7 {[%emt 0:02:58]} 37. d6 {[%emt 0:01:07]} Qc5 {[%emt 0:03:04]} 38. d7 {[%emt 0:01:11]} Bb5 {[%emt 0:02:55]} 39. Re5 {[%emt 0:00:44]} Qd4 {[%emt 0:00:07]} 40. Re4 {[%emt 0:01:32]} Qa7 {[%emt 0:00:53]} 41. Rh4+ {[%emt 0:00:26]} Kg7 {[%emt 0:01:21]} 42. Qe5+ {[%emt 0:00:07]} 1-0

[Event "21st Dubai Open 2019"]
[Site "Dubai"]
[Date "2019.04.07"]
[Round "7.18"]
[White "Sindarov, Javokhir"]
[Black "Laxman, R.R."]
[Result "1-0"]
[ECO "C45"]
[WhiteElo "2495"]
[BlackElo "2428"]
[Annotator "ChessBase"]
[PlyCount "97"]
[EventDate "2019.04.01"]
[EventType "swiss"]
[EventCountry "UAE"]
[SourceTitle "playchess.com"]
[Source "ChessBase"]
[SourceQuality "1"]
[TimeControl "5400+30"]

1. e4 {[%emt 0:00:00]} e5 {[%emt 0:00:00]} 2. Nf3 {[%emt 0:00:00]} Nc6 {[%emt 0:00:00]} 3. d4 {[%emt 0:00:00]} exd4 {[%emt 0:00:00]} 4. Nxd4 {[%emt 0:00:00]} Bc5 {[%emt 0:00:00]} 5. Be3 {[%emt 0:01:34]} Qf6 {[%emt 0:00:00]} 6. c3 {[%emt 0:00:05]} b6 {[%emt 0:00:53]} 7. g3 {[%emt 0:01:21]} Bb7 {[%emt 0:00:13]} 8. Bg2 {[%emt 0:00:05]} O-O-O {[%emt 0:03:44]} 9. O-O {[%emt 0:02:29]} Nge7 {[%emt 0:01:41]} 10. f4 {[%emt 0:05:29]} Bxd4 {[%emt 0:00:21]} 11. cxd4 {[%emt 0:00:32]} d5 {[%emt 0:00:02]} 12. e5 {[%emt 0:03:33]} Qe6 {[%emt 0:01:57]} 13. Qd3 {[%emt 0:01:36]} g6 {[%emt 0:01:14]} 14. Nd2 {[%emt 0:00:20]} Kb8 {[%emt 0:02:16]} 15. a3 {[%emt 0:03:44]} Nf5 {[%emt 0:03:58]} 16. Bf2 {[%emt 0:00:57]} Na5 {[%emt 0:00:11]} 17. Nf3 {[%emt 0:05:39]} h5 {[%emt 0:02:27]} 18. b3 {[%emt 0:05:17]} Qe7 {[%emt 0:04:08]} 19. Rfc1 {[%emt 0:03:31]} h4 {[%emt 0:01:40]} 20. g4 {[%emt 0:02:29]} h3 {[%emt 0:00:06]} 21. gxf5 {[%emt 0:01:50]} hxg2 {[%emt 0:00:02]} 22. Bh4 {[%emt 0:00:09]} Rxh4 {[%emt 0:00:42]} 23. f6 {[%emt 0:00:15]} Qd7 {[%emt 0:02:58]} 24. Nxh4 {[%emt 0:00:13]} Rh8 {[%emt 0:00:10]} 25. Nf3 {[%emt 0:17:46]} Qg4 {[%emt 0:03:09]} 26. Rc2 {[%emt 0:00:17]} Qxf4 {[%emt 0:02:09]} 27. Rxg2 {[%emt 0:00:53]} c5 {[%emt 0:11:02]} 28. Ng5 {[%emt 0:25:55]} c4 {[%emt 0:00:12]} 29. Qc3 {[%emt 0:00:03]} Nxb3 {[%emt 0:00:51]} 30. Rf1 {[%emt 0:01:47]} Qxd4+ {[%emt 0:00:08]} 31. Qxd4 {[%emt 0:00:04]} Nxd4 {[%emt 0:00:05]} 32. Nxf7 {[%emt 0:00:04]} Rf8 {[%emt 0:00:31]} 33. Ng5 {[%emt 0:00:07]} Bc8 {[%emt 0:02:20]} 34. Rd1 {[%emt 0:01:53]} Nf5 {[%emt 0:00:36]} 35. Rxd5 {[%emt 0:00:22]} Ne3 {[%emt 0:03:09]} 36. Rd4 {[%emt 0:09:34]} Nxg2 {[%emt 0:00:10]} 37. Kxg2 {[%emt 0:00:12]} b5 {[%emt 0:01:35]} 38. Kf2 {[%emt 0:00:09]} c3 {[%emt 0:02:43]} 39. Rd3 {[%emt 0:00:08]} c2 {[%emt 0:00:06]} 40. Rc3 {[%emt 0:00:19]} Bf5 {[%emt 0:00:01]} 41. Ke3 {[%emt 0:03:49]} a5 {[%emt 0:07:08]} 42. Ne4 {[%emt 0:00:47]} Rc8 {[%emt 0:04:45]} 43. Rxc8+ {[%emt 0:00:08]} Kxc8 {[%emt 0:00:02]} 44. Kd2 {[%emt 0:00:09]} Kd8 {[%emt 0:00:44]} 45. Nc5 {[%emt 0:02:08]} g5 {[%emt 0:01:28]} 46. e6 {[%emt 0:00:11]} Bg6 {[%emt 0:00:10]} 47. Nb7+ {[%emt 0:01:58]} Ke8 {[%emt 0:00:08]} 48. Nd6+ {[%emt 0:00:06]} Kf8 {[%emt 0:00:19]} 49. Nxb5 {[%emt 0:01:03]} 1-0

[Event "21st Dubai Open 2019"]
[Site "Dubai"]
[Date "2019.04.07"]
[Round "7.19"]
[White "Nguyen, Anh Khoi"]
[Black "Nitin, S.."]
[Result "1-0"]
[ECO "E81"]
[WhiteElo "2481"]
[BlackElo "2400"]
[Annotator "RC"]
[PlyCount "71"]
[EventDate "2019.04.01"]
[EventType "swiss"]
[EventCountry "UAE"]
[SourceTitle "playchess.com"]
[Source "ChessBase"]
[SourceQuality "1"]
[TimeControl "5400+30"]

1. d4 {[%emt 0:00:00]} Nf6 {[%emt 0:00:05]} 2. c4 {[%emt 0:00:00]} g6 {[%emt 0:00:06]} 3. Nc3 {[%emt 0:00:00]} Bg7 {[%emt 0:00:05]} 4. e4 {[%emt 0:00:00]} d6 {[%emt 0:00:06]} 5. f3 {[%emt 0:00:34]} O-O {[%emt 0:00:12]} 6. Nge2 {[%emt 0:00:05]} c6 {[%emt 0:01:12]} 7. Be3 {[%emt 0:00:15]} a6 {[%emt 0:00:20]} 8. g4 {[%emt 0:00:54]} b5 {[%emt 0:01:24]} 9. Ng3 {[%emt 0:00:17]} Qa5 {[%emt 0:11:30]} 10. Qd2 {[%emt 0:08:57]} Nbd7 {[%emt 0:09:50]} 11. h4 {[%emt 0:05:55]} e5 {[%emt 0:03:56]} 12. d5 {[%emt 0:15:07]} b4 {[%emt 0:02:25]} 13. Nd1 {[%emt 0:02:27]} cxd5 {[%emt 0:00:27]} 14. cxd5 {[%emt 0:00:12]} Nc5 {[%emt 0:00:26]} 15. h5 {[%emt 0:13:28]} Ra7 {[%emt 0:04:24]} 16. g5 {[%emt 0:09:50]} Ne8 {[%emt 0:04:50]} 17. Bxc5 {[%emt 0:07:58]} dxc5 {[%emt 0:03:01]} 18. d6 {[%emt 0:07:22]} Nxd6 {[%emt 0:05:42]} 19. hxg6 {[%emt 0:03:34]} hxg6 {[%emt 0:02:38]} 20. Ne3 {[%emt 0:00:48]} Be6 {[%emt 0:00:26]} 21. Rd1 {[%emt 0:10:39]} Rd7 {[%emt 0:02:31]} 22. Qh2 {[%emt 0:00:07]} Rfd8 {[%emt 0:00:49]} 23. b3 {[%emt 0:01:44]} Nb5 {[%emt 0:06:37]} 24. Rxd7 {[%emt 0:00:40]} Rxd7 {[%emt 0:00:06]} 25. Ngf5 {[%emt 0:02:15]} gxf5 {[%emt 0:14:05]} 26. exf5 {[%emt 0:00:05]} Qa3 {[%emt 0:00:47]} 27. Qh7+ {[%emt 0:02:44]} Kf8 {[%emt 0:00:06]} 28. f6 {[%emt 0:00:40]} Qc1+ {[%emt 0:00:06]} 29. Kf2 {[%emt 0:00:01]} Rd2+ {[%emt 0:00:21]} 30. Be2 {[%emt 0:02:06]} Rxe2+ {[%emt 0:00:55]} 31. Kg3 {[%emt 0:00:50]} Rg2+ {[%emt 0:04:03]} 32. Kxg2 {[%emt 0:00:09]} Qb2+ {[%emt 0:00:04]} 33. Kg3 {[%emt 0:00:29]} Bxf6 34. gxf6 {[%emt 0:00:05]} Ke8 {[%emt 0:00:05]} 35. Qe4 {[%emt 0:01:19]} Kd8 {[%emt 0:03:59]} 36. Qc6 {[%emt 0:00:28]} 1-0

[Event "21st Dubai Open 2019"]
[Site "Dubai"]
[Date "2019.04.07"]
[Round "7.20"]
[White "Sadhwani, Raunak"]
[Black "Rathnakaran, K.."]
[Result "1-0"]
[ECO "A05"]
[WhiteElo "2475"]
[BlackElo "2351"]
[Annotator "ChessBase"]
[PlyCount "61"]
[EventDate "2019.04.01"]
[EventType "swiss"]
[EventCountry "UAE"]
[SourceTitle "playchess.com"]
[Source "ChessBase"]
[SourceQuality "1"]
[TimeControl "5400+30"]

1. Nf3 {[%emt 0:00:00]} Nf6 {[%emt 0:00:00]} 2. c4 {[%emt 0:00:00]} c5 3. Nc3 {[%emt 0:00:00]} g6 {[%emt 0:00:00]} 4. d4 {[%emt 0:00:00]} Bg7 {[%emt 0:00:01]} 5. e4 {[%emt 0:00:05]} cxd4 {[%emt 0:00:05]} 6. Nxd4 {[%emt 0:00:04]} d6 {[%emt 0:00:12]} 7. Be2 {[%emt 0:00:04]} O-O {[%emt 0:00:08]} 8. O-O {[%emt 0:00:06]} Nc6 {[%emt 0:00:04]} 9. Be3 {[%emt 0:00:08]} Ng4 {[%emt 0:01:26]} 10. Bxg4 {[%emt 0:00:35]} Bxg4 {[%emt 0:12:40]} 11. Nxc6 {[%emt 0:00:05]} bxc6 {[%emt 0:00:01]} 12. Qxg4 {[%emt 0:00:07]} f5 {[%emt 0:00:03]} 13. Qf3 {[%emt 0:01:31]} f4 {[%emt 0:00:06]} 14. Bd2 {[%emt 0:00:04]} Rb8 {[%emt 0:00:04]} 15. Rab1 {[%emt 0:00:40]} h5 {[%emt 0:00:51]} 16. b3 {[%emt 0:00:11]} Qe8 {[%emt 0:00:13]} 17. e5 {[%emt 0:02:23]} Bxe5 {[%emt 0:02:27]} 18. Ne4 {[%emt 0:00:13]} Rf5 {[%emt 0:01:22]} 19. Bc3 {[%emt 0:00:14]} g5 {[%emt 0:04:28]} 20. Rfe1 {[%emt 0:00:06]} g4 {[%emt 0:01:27]} 21. Qd3 {[%emt 0:00:09]} Qf7 {[%emt 0:00:18]} 22. Bxe5 {[%emt 0:00:13]} dxe5 {[%emt 0:00:10]} 23. f3 {[%emt 0:00:09]} Kh8 {[%emt 0:00:31]} 24. Kh1 {[%emt 0:00:16]} Rg8 {[%emt 0:00:07]} 25. Re2 {[%emt 0:00:22]} Qg6 {[%emt 0:00:16]} 26. Rbe1 {[%emt 0:00:09]} Rg5 {[%emt 0:03:07]} 27. Qc3 {[%emt 0:01:57]} Rf5 {[%emt 0:02:11]} 28. b4 {[%emt 0:01:14]} Rg7 {[%emt 0:00:22]} 29. a4 {[%emt 0:00:08]} Rf8 {[%emt 0:00:17]} 30. b5 {[%emt 0:00:24]} Rfg8 {[%emt 0:03:14]} 31. c5 {[%emt 0:00:15]} 1-0

[Event "21st Dubai Open 2019"]
[Site "Dubai"]
[Date "2019.04.07"]
[Round "7.22"]
[White "Santos Ruiz, Miguel"]
[Black "Naboka, Sergey"]
[Result "1/2-1/2"]
[ECO "E81"]
[WhiteElo "2555"]
[BlackElo "2327"]
[Annotator "ChessBase"]
[PlyCount "81"]
[EventDate "2019.04.01"]
[EventType "swiss"]
[EventCountry "UAE"]
[SourceTitle "playchess.com"]
[Source "ChessBase"]
[SourceQuality "1"]
[TimeControl "5400+30"]

1. d4 {[%emt 0:00:00]} Nf6 {[%emt 0:00:05]} 2. c4 {[%emt 0:00:00]} g6 {[%emt 0:00:20]} 3. Nc3 {[%emt 0:00:00]} Bg7 {[%emt 0:00:28]} 4. e4 {[%emt 0:00:02]} d6 {[%emt 0:00:05]} 5. f3 {[%emt 0:00:05]} O-O {[%emt 0:00:27]} 6. Be3 {[%emt 0:00:14]} c5 {[%emt 0:00:42]} 7. Nge2 {[%emt 0:00:20]} Nc6 {[%emt 0:00:13]} 8. d5 {[%emt 0:00:10]} Ne5 {[%emt 0:00:07]} 9. Ng3 {[%emt 0:00:10]} h5 {[%emt 0:06:37]} 10. Be2 {[%emt 0:00:31]} h4 {[%emt 0:02:37]} 11. Nf1 {[%emt 0:01:07]} e6 {[%emt 0:00:47]} 12. Bg5 {[%emt 0:00:08]} h3 {[%emt 0:05:40]} 13. gxh3 {[%emt 0:17:34]} exd5 {[%emt 0:02:47]} 14. Nxd5 {[%emt 0:01:01]} Bxh3 {[%emt 0:04:10]} 15. Nfe3 {[%emt 0:04:03]} Nxd5 {[%emt 0:15:42]} 16. Bxd8 {[%emt 0:02:28]} Nxe3 {[%emt 0:00:05]} 17. Qd2 {[%emt 0:10:20]} Bh6 {[%emt 0:07:08]} 18. Qxd6 {[%emt 0:02:08]} Bf4 {[%emt 0:03:34]} 19. Bg5 {[%emt 0:00:38]} Nxf3+ {[%emt 0:15:21]} 20. Bxf3 {[%emt 0:00:15]} Bxd6 {[%emt 0:00:18]} 21. Bxe3 {[%emt 0:00:10]} Rad8 {[%emt 0:02:08]} 22. O-O-O {[%emt 0:10:55]} b6 {[%emt 0:02:31]} 23. Bh6 {[%emt 0:06:11]} Rfe8 {[%emt 0:01:57]} 24. Bg5 {[%emt 0:00:35]} Be7 {[%emt 0:02:14]} 25. Bf4 {[%emt 0:16:52]} Bf6 {[%emt 0:05:25]} 26. Rxd8 {[%emt 0:00:55]} Rxd8 {[%emt 0:00:14]} 27. Rd1 {[%emt 0:00:09]} Re8 {[%emt 0:00:33]} 28. Rd6 {[%emt 0:04:10]} Be5 {[%emt 0:02:39]} 29. Bxe5 {[%emt 0:00:09]} Rxe5 {[%emt 0:00:01]} 30. Rd8+ {[%emt 0:01:26]} Kg7 {[%emt 0:00:08]} 31. Kd2 {[%emt 0:00:05]} Be6 {[%emt 0:04:29]} 32. b3 {[%emt 0:01:33]} g5 {[%emt 0:00:19]} 33. Ke3 {[%emt 0:00:24]} g4 {[%emt 0:02:21]} 34. Bd1 {[%emt 0:00:32]} f5 {[%emt 0:02:44]} 35. Bc2 {[%emt 0:00:25]} fxe4 {[%emt 0:00:10]} 36. Bxe4 {[%emt 0:02:26]} Rh5 {[%emt 0:02:42]} 37. Rd2 {[%emt 0:00:51]} Rh3+ {[%emt 0:00:37]} 38. Kf4 {[%emt 0:00:09]} Kf6 {[%emt 0:00:09]} 39. Bd5 {[%emt 0:01:07]} Bf5 {[%emt 0:01:14]} 40. Bc6 {[%emt 0:01:07]} Be6 {[%emt 0:01:36]} 41. Bd5 {[%emt 0:00:50] Ke5+ Ke4+} 1/2-1/2

[Event "21st Dubai Open 2019"]
[Site "Dubai"]
[Date "2019.04.07"]
[Round "7.23"]
[White "Sundararajan, Kidambi"]
[Black "Chanda, Sandipan"]
[Result "1/2-1/2"]
[ECO "A10"]
[WhiteElo "2413"]
[BlackElo "2521"]
[Annotator "ChessBase"]
[PlyCount "97"]
[EventDate "2019.04.01"]
[EventType "swiss"]
[EventCountry "UAE"]
[SourceTitle "playchess.com"]
[Source "ChessBase"]
[SourceQuality "1"]
[TimeControl "5400+30"]

1. c4 {[%emt 0:00:00]} f5 {[%emt 0:00:52]} 2. b3 {[%emt 0:00:02]} b6 {[%emt 0:02:02]} 3. Bb2 {[%emt 0:01:20]} Bb7 {[%emt 0:00:39]} 4. Nf3 {[%emt 0:01:52]} e6 {[%emt 0:00:53]} 5. g3 {[%emt 0:00:40]} Nf6 {[%emt 0:00:24]} 6. Bg2 {[%emt 0:00:10]} g6 {[%emt 0:00:10]} 7. O-O {[%emt 0:01:25]} Bg7 {[%emt 0:00:06]} 8. d3 {[%emt 0:06:43]} O-O {[%emt 0:00:14]} 9. Nbd2 {[%emt 0:00:21]} d5 {[%emt 0:02:14]} 10. b4 {[%emt 0:02:39]} Nbd7 {[%emt 0:05:45]} 11. a4 {[%emt 0:02:49]} c5 {[%emt 0:03:30]} 12. a5 {[%emt 0:05:41]} Rb8 {[%emt 0:04:05]} 13. axb6 {[%emt 0:07:00]} axb6 {[%emt 0:05:07]} 14. Ra7 {[%emt 0:07:04]} Qc8 {[%emt 0:06:49]} 15. Qb3 {[%emt 0:11:47]} Ra8 {[%emt 0:07:03]} 16. Rxa8 {[%emt 0:02:40]} Bxa8 {[%emt 0:01:15]} 17. Ra1 {[%emt 0:05:15]} Re8 {[%emt 0:25:59]} 18. Ne5 {[%emt 0:05:43]} Qc7 {[%emt 0:13:33]} 19. Nxd7 {[%emt 0:03:01]} Nxd7 {[%emt 0:03:03]} 20. cxd5 {[%emt 0:05:22]} Bxd5 {[%emt 0:01:02]} 21. Bxd5 {[%emt 0:00:36]} exd5 {[%emt 0:00:06]} 22. Qxd5+ {[%emt 0:00:27]} Kf8 {[%emt 0:00:06]} 23. Bxg7+ {[%emt 0:01:42]} Kxg7 {[%emt 0:00:03]} 24. bxc5 {[%emt 0:01:52]} Rxe2 {[%emt 0:00:54]} 25. cxb6 {[%emt 0:12:17]} Qxb6 {[%emt 0:00:11]} 26. Qxd7+ {[%emt 0:00:33]} Kh6 {[%emt 0:00:08]} 27. Qa7 {[%emt 0:04:38]} Qxa7 {[%emt 0:00:23]} 28. Rxa7 {[%emt 0:00:07]} Rxd2 {[%emt 0:00:03]} 29. Rd7 {[%emt 0:00:33]} Kg5 {[%emt 0:01:40]} 30. Kg2 {[%emt 0:01:02]} h5 {[%emt 0:08:03]} 31. h4+ {[%emt 0:00:38]} Kf6 {[%emt 0:00:05]} 32. Rd6+ {[%emt 0:00:09]} Kf7 {[%emt 0:03:53]} 33. Kf3 {[%emt 0:00:11]} Ra2 {[%emt 0:01:11]} 34. Ke3 {[%emt 0:00:32]} Rb2 {[%emt 0:00:28]} 35. Ra6 {[%emt 0:00:08]} Rb3 {[%emt 0:01:21]} 36. Rc6 {[%emt 0:01:15]} Ra3 {[%emt 0:00:14]} 37. Rd6 {[%emt 0:00:10]} Ra4 {[%emt 0:00:24]} 38. d4 {[%emt 0:00:51]} Ra2 {[%emt 0:00:17]} 39. d5 {[%emt 0:01:02]} Ra3+ {[%emt 0:01:34]} 40. Kf4 {[%emt 0:00:19]} Ra4+ {[%emt 0:00:04]} 41. Kg5 {[%emt 0:01:23]} Rg4+ {[%emt 0:00:07]} 42. Kh6 {[%emt 0:00:04]} f4 {[%emt 0:00:08]} 43. gxf4 {[%emt 0:01:24]} Rxf4 {[%emt 0:00:32]} 44. Rxg6 {[%emt 0:02:43]} Rxh4 {[%emt 0:00:06]} 45. d6 {[%emt 0:01:06]} Rf4 {[%emt 0:02:05]} 46. d7 {[%emt 0:01:33]} Rd4 {[%emt 0:01:45]} 47. Rg7+ {[%emt 0:01:07]} Kf6 {[%emt 0:00:07]} 48. Rg6+ {[%emt 0:00:45]} Kf7 {[%emt 0:00:15]} 49. Rg7+ {[%emt 0:00:44]} 1/2-1/2

[Event "21st Dubai Open 2019"]
[Site "Dubai"]
[Date "2019.04.07"]
[Round "7.25"]
[White "Hedman, Erik"]
[Black "Venkatesh, M.R."]
[Result "1-0"]
[ECO "A40"]
[WhiteElo "2385"]
[BlackElo "2517"]
[Annotator "ChessBase"]
[PlyCount "87"]
[EventDate "2019.04.01"]
[EventType "swiss"]
[EventCountry "UAE"]
[SourceTitle "playchess.com"]
[Source "ChessBase"]
[SourceQuality "1"]
[TimeControl "5400+30"]

1. d4 {[%emt 0:00:00]} Nc6 {[%emt 0:00:00]} 2. d5 {[%emt 0:00:00]} Ne5 {[%emt 0:00:00]} 3. e4 {[%emt 0:00:02]} d6 {[%emt 0:07:09]} 4. f4 {[%emt 0:01:39]} Ng6 {[%emt 0:00:38]} 5. Nf3 {[%emt 0:09:04]} e6 {[%emt 0:03:24]} 6. dxe6 {[%emt 0:00:11]} fxe6 {[%emt 0:00:06]} 7. Nc3 {[%emt 0:01:25]} c6 {[%emt 0:04:39]} 8. h4 {[%emt 0:06:44]} Be7 {[%emt 0:07:09]} 9. h5 {[%emt 0:02:50]} Nf8 {[%emt 0:02:10]} 10. Qd4 {[%emt 0:07:45]} Nf6 {[%emt 0:09:52]} 11. e5 {[%emt 0:05:21]} Nd5 {[%emt 0:05:49]} 12. Ne4 {[%emt 0:02:52]} dxe5 {[%emt 0:00:36]} 13. fxe5 {[%emt 0:00:15]} Qb6 {[%emt 0:02:26]} 14. a3 {[%emt 0:02:49]} Qxd4 {[%emt 0:27:35]} 15. Nxd4 {[%emt 0:00:08]} Bd7 {[%emt 0:00:31]} 16. c4 {[%emt 0:01:22]} Nb6 {[%emt 0:00:11]} 17. Be3 {[%emt 0:21:22]} c5 {[%emt 0:05:40]} 18. Nb3 {[%emt 0:03:07]} Bc6 {[%emt 0:00:05]} 19. Nbxc5 {[%emt 0:03:22]} O-O-O {[%emt 0:08:48]} 20. Be2 {[%emt 0:10:26]} Bxc5 {[%emt 0:05:50]} 21. Nxc5 {[%emt 0:00:05]} Nfd7 {[%emt 0:00:09]} 22. Nxd7 {[%emt 0:05:23]} Nxd7 {[%emt 0:00:07]} 23. O-O-O {[%emt 0:00:07]} Rhf8 {[%emt 0:02:14]} 24. Bd4 {[%emt 0:05:59]} Rf4 {[%emt 0:06:00]} 25. Rd2 {[%emt 0:00:05]} Bxg2 {[%emt 0:00:28]} 26. Rg1 {[%emt 0:00:33]} Be4 {[%emt 0:00:32]} 27. Rxg7 {[%emt 0:00:10]} Bf5 {[%emt 0:00:04]} 28. Bxa7 {[%emt 0:00:45]} Rh4 {[%emt 0:01:14]} 29. Bf3 {[%emt 0:06:36]} Rxc4+ {[%emt 0:00:15]} 30. Kd1 {[%emt 0:00:03]} Rc7 {[%emt 0:00:46]} 31. Bd4 {[%emt 0:00:20]} b6 {[%emt 0:00:28]} 32. a4 {[%emt 0:00:57]} Rf8 {[%emt 0:00:20]} 33. Ke2 {[%emt 0:00:45]} Bc2 {[%emt 0:00:33]} 34. Rxd7 {[%emt 0:00:14]} Bd3+ {[%emt 0:00:40]} 35. Rxd3 {[%emt 0:00:33]} Rxd7 {[%emt 0:00:02]} 36. Rc3+ {[%emt 0:00:31]} Kb8 {[%emt 0:00:06]} 37. Bxb6 {[%emt 0:00:20]} Rf5 {[%emt 0:00:04]} 38. Re3 {[%emt 0:01:21]} Rf4 {[%emt 0:00:12]} 39. Re4 {[%emt 0:00:15]} Rf5 {[%emt 0:00:20]} 40. Be3 {[%emt 0:00:48]} Rc7 {[%emt 0:01:01]} 41. Bg4 {[%emt 0:01:14]} Rf8 {[%emt 0:00:15]} 42. Rb4+ {[%emt 0:00:06]} Rb7 {[%emt 0:00:24]} 43. Rxb7+ {[%emt 0:00:04]} Kxb7 {[%emt 0:00:04]} 44. Bxe6 {[%emt 0:00:09]} 1-0

[Event "21st Dubai Open 2019"]
[Site "Dubai"]
[Date "2019.04.07"]
[Round "7.26"]
[White "Vishnu Prasanna. V"]
[Black "Pranav Vijay"]
[Result "0-1"]
[ECO "E32"]
[WhiteElo "2515"]
[BlackElo "2265"]
[Annotator "RC"]
[PlyCount "44"]
[EventDate "2019.04.01"]
[EventType "swiss"]
[EventCountry "UAE"]
[SourceTitle "playchess.com"]
[Source "ChessBase"]
[SourceQuality "1"]
[TimeControl "5400+30"]

1. d4 {[%emt 0:00:00]} Nf6 {[%emt 0:00:00]} 2. c4 {[%emt 0:00:00]} e6 {[%emt 0:00:00]} 3. Nc3 {[%emt 0:00:00]} Bb4 {[%emt 0:00:00]} 4. Qc2 {[%emt 0:00:00]} O-O {[%emt 0:03:11]} 5. e4 {[%emt 0:00:02]} c5 {[%emt 0:01:41]} 6. e5 {[%emt 0:02:23]} cxd4 {[%emt 0:01:46]} 7. a3 {[%emt 0:00:05]} Qa5 {[%emt 0:08:10]} 8. exf6 {[%emt 0:03:50]} dxc3 {[%emt 0:00:41]} 9. axb4 {[%emt 0:00:08]} Qxa1 {[%emt 0:00:29]} 10. bxc3 {[%emt 0:02:38]} e5 {[%emt 0:25:53]} 11. Bd3 {[%emt 0:13:46]} g6 {[%emt 0:09:33]} 12. c5 {[%emt 0:04:18]} e4 {[%emt 0:03:10]} 13. Bxe4 {[%emt 0:09:37]} Qa6 {[%emt 0:02:43]} 14. Ne2 {[%emt 0:00:30]} d5 {[%emt 0:04:14]} 15. Bxd5 {[%emt 0:01:22]} Bf5 {[%emt 0:02:48]} 16. Qa2 {[%emt 0:06:51]} Qxa2 {[%emt 0:02:05]} 17. Bxa2 {[%emt 0:00:06]} a5 {[%emt 0:00:42]} 18. Bd5 {[%emt 0:13:41]} axb4 {[%emt 0:01:13]} 19. cxb4 {[%emt 0:02:29]} Re8 {[%emt 0:01:08]} 20. Bxb7 {[%emt 0:11:22]} Ra2 {[%emt 0:00:52]} 21. Bf3 {[%emt 0:00:10]} Be4 {[%emt 0:05:57]} 22. Bg4 {[%emt 0:05:56]} h5 {[%emt 0:00:52]} 0-1